Workbook

Sheet 新增
A1: 三明城发物业有限公司新增资产租金底价评估报价单
A2: 联 系 人： | E2: 报 价 日 期:
A4: 注:以下报价为开发票含税价。
A5: 序号 | B5: 项目 | C5: 商铺地址 | D5: 商铺编号 | E5: 计租面积（㎡） | F5: 层高（㎡） | G5: 含税报价（元） | H5: 备注
A6: 1 | B6: 沙县长兴苑 | C6: 沙县长兴路东侧D-1地块 | D6: 7幢 | E6: 1741.07 | F6: 6 | H6: 根据出让条件，商业部分应整体经营、整体持有、整体转让
A7: 2 | D7: 8幢 | E7: 2105.51 | F7: 6
A8: 3 | D8: 9幢 | E8: 1077.37 | F8: 6
A9: 小计 | E9: =SUM(E6:E8) -> 4923.95
A10: 4 | B10: 金澜湾一期 | C10: 三元区东乾三路391号 | D10: 一层1、2号铺 | E10: 450.04 | H10: 根据出让条件，商业部分应整体经营、整体持有、整体转让
A11: 5 | D11: 一层3号铺 | E11: 38.13
A12: 6 | D12: 二层1号铺 | E12: 236.05
A13: 7 | D13: 二层2号铺 | E13: 246.9
A14: 8 | D14: 二层3号铺 | E14: 196.71
A15: 9 | D15: 二层4号铺 | E15: 197.71
A16: 10 | D16: 二层5、6、7号铺 | E16: 729.65
A17: 小计 | E17: =SUM(E10:E16) -> 2095.19
A18: 11 | B18: 碧湖综合大楼 | C18: 碧湖村196幢 | D18: C座 | E18: 8109.661
A19: 12 | D19: D座 | E19: 9418.044
A20: 13 | D20: B座 | E20: 3631.925
A21: 小计 | E21: =SUM(E18:E20) -> 21159.63
A22: 14 | B22: 佳和人家（新都汇） | C22: 梅列区乾龙新村314幢一层 | D22: 8号 | E22: 94.58
A23: 15 | D23: 11、12、13号号店 | E23: 208.11
A24: 16 | D24: 17号店 | E24: 46.193
A25: 小计 | E25: =SUM(E22:E24) -> 348.883
A26: 17 | B26: 沪明小学项目 | C26: 沪明小学 | D26: 停车场 | E26: 153个车位
A27: 小计
A28: 18 | B28: 江滨广场项目 | C28: 江滨广场 | D28: 一层21号店 | E28: 45.342
E29: =E28 -> 45.342
A30: 19 | B30: 古玩一条街 | C30: 古玩一条街3号 | D30: 3号 | E30: 169.031
A31: 小计 | E31: 169.031
A32: 20 | B32: 下洋文化综合大楼 | C32: 下洋文化综合大楼 | D32: 2层 | E32: 682.208
A33: 21 | D33: 10层 | E33: 709.92
A34: 22 | D34: 11层 | E34: 709.92
A35: 小计 | E35: =SUM(E32:E34) -> 2102.048
A36: 23 | B36: 下洋会展中心 | C36: 下洋会展中心 | D36: 四层 | H36: 重新测量
A37: 小计 | E37: =SUM(E36:E36) -> 0
A38: 24 | B38: 白坂路棚户区改造项目 | C38: 工业南路108号 | D38: 二层6号 | E38: 109.729
A39: 小计 | E39: =SUM(E38:E38) -> 109.729
A40: 25 | B40: 三元区新台江小学项目 | C40: 三元区新台江小学（三明学院附属小学台江校区）周边商铺 | D40: 1号 | E40: 69.82 | F40: 4.5
A41: 26 | D41: 2号 | E41: 72.27 | F41: 4.5
A42: 27 | D42: 3号 | E42: 66.45 | F42: 4.5
A43: 28 | D43: 5号 | E43: 48.85 | F43: 4.5
A44: 29 | D44: 6号 | E44: 47.39 | F44: 4.5
A45: 30 | D45: 7号 | E45: 47.28 | F45: 4.5
A46: 31 | D46: 8号 | E46: 47.13 | F46: 4.5
A47: 32 | D47: 9号 | E47: 112.87 | F47: 4.5
A48: 33 | D48: 10号 | E48: 48.76 | F48: 4.5
A49: 34 | D49: 11号 | E49: 47.52 | F49: 4.5
A50: 35 | D50: 12号 | E50: 49.94 | F50: 4.5
A51: 36 | D51: 13、14、15号 | E51: 232.71 | F51: 4.5
A52: 37 | D52: 16号 | E52: 34.23 | F52: 4.5
A53: 38 | D53: 17号 | E53: 34.71 | F53: 4.5
A54: 39 | D54: 18号 | E54: 34.3 | F54: 4.5
A55: 40 | D55: 19号 | E55: 39.21 | F55: 4.5
A56: 41 | D56: 20号 | E56: 44.59 | F56: 4.5
A57: 42 | D57: 21号 | E57: 39.86 | F57: 4.5
A58: 43 | B58: 三元区新台江小学项目 | C58: 三元区新台江小学（三明学院附属小学台江校区）周边商铺 | D58: 22号 | E58: 38.03 | F58: 4.5
A59: 44 | D59: 23号 | E59: 38 | F59: 4.5
A60: 45 | D60: 24号 | E60: 36.86 | F60: 4.5
A61: 小计 | E61: =SUM(E40:E60) -> 1230.78
A62: 46 | B62: 陈景润实验小学富兴校区周边商铺项目 | C62: 陈景润实验小学富兴校区周边商铺 | D62: 1号-3号 | E62: 146.7 | F62: 5.1
A63: 47 | D63: 4号 | E63: 49.02 | F63: 5.1
A64: 48 | D64: 5号 | E64: 48.84 | F64: 5.1
A65: 49 | D65: 6号 | E65: 49.02 | F65: 5.1
A66: 50 | D66: 7号 | E66: 48.84 | F66: 5.1
A67: 51 | D67: 8号 | E67: 49.02 | F67: 5.1
A68: 52 | D68: 9号 | E68: 48.84 | F68: 5.1
A69: 53 | D69: 10号 | E69: 49.02 | F69: 5.1
A70: 54 | D70: 11号 | E70: 48.84 | F70: 5.1
A71: 55 | D71: 12号 | E71: 48.93 | F71: 5.1
A72: 56 | D72: 13号 | E72: 71.14 | F72: 5.1
A73: 小计 | E73: =SUM(E62:E72) -> 658.21
A74: 57 | B74: 贵溪洋小学 | C74: 7#一层 | D74: 1号 | E74: 76.05 | F74: =176.5-173 -> 3.5
A75: 58 | D75: 2号 | E75: 60.84 | F75: =176.5-173 -> 3.5
A76: 59 | D76: 3号 | E76: 45.24 | F76: =176.5-172.95 -> 3.55
A77: 60 | D77: 4号 | E77: 45.24 | F77: =176.5-172.95 -> 3.55
A78: 61 | D78: 5号 | E78: 45.24 | F78: =176.5-172.35 -> 4.15
A79: 62 | D79: 6号 | E79: 45.24 | F79: =176.5-172.35 -> 4.15
A80: 63 | D80: 7号 | E80: 45.24 | F80: =176.5-171.9 -> 4.6
A81: 64 | D81: 8号 | E81: 45.24 | F81: =176.5-171.9 -> 4.6
A82: 65 | D82: 9号 | E82: 44.46 | F82: =176.5-171.3 -> 5.2
A83: 66 | B83: 贵溪洋小学 | C83: 7#一层 | D83: 10号 | E83: 55.38 | F83: =176.5-170.7 -> 5.8
A84: 67 | D84: 11号 | E84: 64.74 | F84: =176.5-170.7 -> 5.8
A85: 68 | C85: 7#二层 | D85: 12号 | E85: 76.05 | F85: 4.2
A86: 69 | D86: 13号 | E86: 60.84 | F86: 4.2
A87: 70 | D87: 14号 | E87: 45.24 | F87: 4.2
A88: 71 | D88: 15号 | E88: 45.24 | F88: 4.2
A89: 72 | D89: 16号 | E89: 45.24 | F89: 4.2
A90: 73 | D90: 17号 | E90: 45.24 | F90: 4.2
A91: 74 | D91: 18号 | E91: 45.24 | F91: 4.2
A92: 75 | D92: 19号 | E92: 45.24 | F92: 4.2
A93: 76 | D93: 20号 | E93: 44.46 | F93: 4.2
A94: 77 | D94: 21号 | E94: 55.167 | F94: 4.2
A95: 78 | D95: 22号 | E95: 64.74 | F95: 4.2
A96: 79 | C96: 10# | D96: 1号 | E96: 34.32 | F96: =182-178.55 -> 3.45
A97: 80 | D97: 2号 | E97: 34.32 | F97: =182-178.55 -> 3.45
A98: 81 | D98: 3号 | E98: 41.36 | F98: =182-177.65 -> 4.35
A99: 82 | D99: 4号 | E99: 42.24 | F99: =182-177.65 -> 4.35
A100: 83 | D100: 5号 | E100: 42.24 | F100: =182-176.75 -> 5.25
A101: 84 | D101: 6号 | E101: 43.12 | F101: =182-176.75 -> 5.25
A102: 85 | D102: 7号 | E102: 42.24 | F102: =182-175.85 -> 6.15
A103: 86 | D103: 8号 | E103: 42.24 | F103: 6.15
A104: 87 | D104: 9号 | E104: 42.24 | F104: 6.15
A105: 88 | D105: 10号 | E105: 42.24 | F105: 6.15
A106: 89 | D106: 11号 | E106: 88 | F106: =182-174.05 -> 7.95 | H106: 一层：3.2m；二层4.75m
A107: 90 | D107: 12号 | E107: 144.32 | F107: =182-173.15 -> 8.85 | H107: 一层：4.1m；二层4.75m
A108: 91 | D108: 13号 | E108: 144.32 | F108: =182-172.25 -> 9.75 | H108: 一层：5m；二层4.75m
A109: 92 | B109: 贵溪洋小学 | C109: 10# | D109: 14号 | E109: 232.32 | F109: =182-170.6 -> 11.4 | H109: 一层：6.65m；二层4.75m
A110: 小计 | E110: =SUM(E74:E109) -> 2161.127
A111: 合计 | E111: =E110+E73+E61+E39+E35+E25+E21+E17+E9+E31+E37+E29 -> 35003.92

Sheet 续租
A1: 三明城发物业有限公司续租资产租金底价评估报价单
A2: 联 系 人： | E2: 报 价 日 期:
A4: 注:以下报价为开发票含税价。
A5: 序号 | B5: 项目 | C5: 商铺地址 | D5: 商铺编号 | E5: 计租面积（㎡） | F5: 层高（㎡） | G5: 含税报价（元） | H5: 备注
A6: 1 | B6: 瑞和人家(六路项目） | C6: 梅列区乾龙新村312幢负一层 | D6: 1号店 | E6: 91.5 | H6: 9号店面积重新计算
A7: 2 | C7: 梅列区乾龙新村312幢负一层 | D7: 2号店 | E7: 42.86
A8: 3 | C8: 梅列区乾龙新村312幢负一层 | D8: 3号店 | E8: 45.049
A9: 4 | C9: 梅列区乾龙新村312幢负一层 | D9: 9号店 | E9: 36.065
A10: 小计 | E10: =SUM(E6:E6) -> 91.5
A11: 5 | B11: 体育场馆项目周边商铺 | C11: 乾龙新村430幢-2 (体育场馆项目周边商铺) | D11: 2-3号店 | E11: 121.5
A12: 6 | D12: 4-6号店 | E12: 182.2
A13: 7 | C13: 体育场东南侧(体育场馆项目周边商铺) | D13: 25号店 | E13: 62
A14: 小计 | E14: =SUM(E11:E13) -> 365.7
A15: 8 | B15: 龙泽小区周边 | C15: 乾龙新村392幢1-2层(龙泽小区周边商铺) | D15: 4号跃、一层5号、5号跃 | E15: 395.037
A16: 9 | D16: 一层2号、2号跃 | E16: 205.105
A17: 10 | D17: 1层6号 | E17: 81.325
A18: 11 | D18: 1层1号 | E18: 62.308
A19: 12 | C19: B05北侧商业楼(龙泽小区周边商铺) | D19: 公厕旁商铺及跃层 | E19: 185 | F19: 面积计双层
A20: 13 | D20: 1-7号店 | E20: 310 | F20: 面积计单层
A21: 14 | D21: 8-9号店 | E21: 81 | F21: 面积计单层
A22: 15 | D22: 10号店 | E22: 39 | F22: 面积计单层
A23: 16 | D23: 11号店 | E23: 38 | F23: 面积计单层
A24: 17 | D24: 12号店 | E24: 37 | F24: 面积计单层
A25: 18 | D25: 13号店 | E25: 37 | F25: 面积计单层
A26: 19 | D26: 14号店 | E26: 36 | F26: 面积计单层
A27: 20 | D27: 15号店 | E27: 57 | F27: 面积计单层
A28: 21 | D28: 16号店 | E28: 32 | F28: 面积计单层
A29: 22 | D29: 17号店 | E29: 31 | F29: 面积计单层
A30: 23 | D30: 18号店 | E30: 30 | F30: 面积计单层
A31: 24 | D31: 19号店 | E31: 29 | F31: 面积计单层
A32: 25 | B32: 龙泽小区周边 | C32: B05北侧商业楼(龙泽小区周边商铺) | D32: 20店 | E32: 28 | F32: 面积计单层
A33: 26 | D33: 21号店 | E33: 28 | F33: 面积计单层
A34: 27 | D34: 22号店 | E34: 27 | F34: 面积计单层
A35: 28 | D35: 23号店 | E35: 26 | F35: 面积计单层
A36: 29 | D36: 24号店 | E36: 34 | F36: 面积计单层
A37: 30 | D37: 25号店 | E37: 34 | F37: 面积计单层
A38: 31 | D38: 26-27店 | E38: 63 | F38: 面积计单层
A39: 32 | D39: 28-29号店 | E39: 50 | F39: 面积计单层
A40: 33 | D40: 31-32号店 | E40: 33 | F40: 面积计单层
A41: 34 | D41: 33-34号店 | E41: 33 | F41: 面积计单层
A42: 小计 | E42: =SUM(E15:E41) -> 2041.775
A43: 35 | B43: 梅园项目 | C43: 乾龙新村348幢 | D43: 一层5号店 | E43: 143.927
A44: 小计 | E44: =SUM(E43:E43) -> 143.927
A45: 36 | B45: 森邻人家项目 | C45: 梅列区劲松路150号3幢 | D45: 1号 | E45: 180.064
A46: 37 | D46: 2号 | E46: 72.389
A47: 38 | D47: 3号 | E47: 58.419
A48: 小计 | E48: =SUM(E45:E47) -> 310.872
A49: 39 | B49: 下洋体育健身中心 | C49: 下洋体育健身中心 | D49: 羽毛球馆沿街店面（市建设局对面）北侧二间 | E49: 330
A50: 40 | D50: 下洋健身中心羽毛球馆沿街店面（市建设局对面）北侧二间 | E50: 100
A51: 小计 | E51: =SUM(E49:E50) -> 430
A52: 41 | B52: 三化 | C52: 原福建省化学工业第一技工学校 | D52: 教学楼 | E52: 1714
A53: 小计 | E53: =SUM(E52:E52) -> 1714
A54: 42 | B54: 白沙省一建安置房项目 | C54: 工业中路32号8幢（白沙省一建安置房） | D54: 一层23号 | E54: 109.526
A55: 43 | B55: 白沙省一建安置房项目 | C55: 工业中路32号8幢（白沙省一建安置房） | D55: 一层23号跃 | E55: 176.873
A56: 44 | D56: 二层储藏间 | E56: 207.531
A57: 45 | B57: 白沙省一建安置房项目 | C57: 工业中路32号5幢（白沙省一建安置房） | D57: 一层8号、一层8号跃 | E57: 171.964
A58: 46 | D58: 一层9号、一层9号跃、一层9号跃储藏间 | E58: 290.419
A59: 47 | D59: 一层32号储藏间 | E59: 58.446
A60: 小计 | E60: =SUM(E54:E59) -> 1014.759
A61: 48 | B61: 原三元区教师进修学校红印山校区项目 | C61: 原三元区教师进修学校红印山校区（宿舍楼） | D61: 校区 | E61: 1088.58
A62: 49 | D62: 文笔路6幢104 | E62: 59.81
A63: 50 | D63: 文笔路6幢201 | E63: 48.39
A64: 51 | D64: 文笔路6幢203 | E64: 48.39
A65: 52 | D65: 文笔路6幢301 | E65: 48.39
A66: 53 | D66: 文笔路6幢303 | E66: 48.39
A67: 54 | D67: 文笔路6幢501 | E67: 48.39
A68: 55 | D68: 文笔路6幢502 | E68: 59.98
A69: 56 | D69: 文笔路6幢503 | E69: 48.39
A70: 57 | D70: 文笔路6幢504 | E70: 59.81
A71: 58 | C71: 三元区文笔路2号（店面） | D71: 2-4号店 | E71: 58
A72: 59 | D72: 5号店 | E72: 20
A73: 60 | D73: 6号店 | E73: 20
A74: 61 | D74: 7-8号店 | E74: 20
A75: 62 | D75: 9号店 | E75: 10
A76: 小计 | E76: =SUM(E61:E75) -> 1686.52
A77: 63 | B77: 城市文化广场项目 | C77: 市规划馆 | D77: 2层 | E77: 103
E78: =E77 -> 103
A79: 合计 | E79: =E76+E60+E53+E51+E48+E44+E42+E14+E10+E78 -> 7902.053
